[Event "Gibraltar Challengers A 2019"]
[Site "Caleta"]
[Date "2019.01.21"]
[Round "1"]
[White "Suez-Panama, Gilles"]
[Black "Villar Reymundo, Juan Antonio"]
[Result "0-1"]
[ECO "E11"]
[WhiteElo "2078"]
[BlackElo "2237"]
[Annotator "NA"]
[PlyCount "68"]
[EventDate "2019.01.21"]
[EventType "swiss"]
[EventCountry "GGB"]
[SourceTitle "playchess.com"]
[Source "ChessBase"]
[SourceQuality "1"]
[TimeControl "6600+10"]

{[%evp 9,57,13,32767,8,11,32767,-2,32767,-2,-16,32767,32767,0,-28,0,3,33,0,23,0,32767,-20,14,32767,32767,32767,32767,32767,-31,-72,-70,32767,0,-103,-62,-49,-29,-262,32767,32767,-264,32767,32767,32767,32767,32767,-796,32767,-847,-899]} 1. d4 {[%emt 0:00:47]} Nf6 {[%emt 0:00:05]} 2. Nf3 {[%emt 0:00:12]} e6 {[%emt 0:00:13]} 3. c4 {[%emt 0:00:05]} Bb4+ {[%emt 0:00:14]} 4. Nbd2 {[%emt 0:00:16]} d5 {[%emt 0:03:29]} 5. a3 {[%emt 0:00:52]} Be7 {[%emt 0:00:27]} 6. g3 {[%emt 0:01:00]} O-O {[%emt 0:00:55]} 7. Bg2 {[%emt 0:00:21]} b6 {[%emt 0:01:32]} 8. O-O {[%emt 0:00:53] E11: Bogo-Indian} Bb7 {[%emt 0:00:44]} 9. Qc2 {[%emt 0:00:31] LiveBook: 13 Games} (9. b4 c5 10. bxc5 bxc5 11. Rb1 Qc8 12. Bb2 Nbd7 13. dxc5 Nxc5 14. Qc2 Nfe4 15. Rfc1 f6 16. cxd5 Bxd5 {0-1 (41) Rodshtein,M (2695)-Fedoseev,V (2731) Tbilisi 2017}) 9... Nbd7 {[%emt 0:01:17]} 10. Rd1 {[%emt 0:01:17]} c5 {[%emt 0:03:38]} 11. cxd5 {[%emt 0:09:33]} exd5 {[%emt 0:00:19]} 12. dxc5 {[%emt 0:02:25]} bxc5 {[%emt 0:01:37]} 13. b3 $146 {[%emt 0:03:44]} ({Predecessor:} 13. e4 Qc7 14. exd5 Bxd5 15. Nc4 Qb7 16. Nh4 Bxg2 17. Nxg2 Rfe8 18. Bf4 Bf8 {½-½ (41) Sorokin,A (2344)-Gasanov,E (2488) Moscow 2016}) 13... a5 {[%emt 0:05:58]} 14. Bb2 {[%emt 0:03:14]} a4 {[%emt 0:05:32]} 15. Ne5 {[%emt 0:03:23]} Nb6 {[%emt 0:03:16]} 16. Ne4 {[%emt 0:14:50]} axb3 {[%emt 0:06:15]} 17. Qxb3 {[%emt 0:03:36]} Nxe4 {[%emt 0:10:21]} 18. Bxe4 {[%emt 0:00:23]} Qc7 {[%emt 0:00:28]} 19. Bg2 {[%emt 0:12:36]} Bd6 {[%emt 0:25:54]} 20. Ng4 {[%emt 0:04:17]} Bc6 $2 {[%emt 0:06:04]} (20... d4 $17 21. Bxb7 Qxb7) 21. Qf3 {[%emt 0:02:21]} (21. Rac1 $11 {remains equal.}) 21... f5 {[%emt 0:02:00]} 22. Ne3 {[%emt 0:02:37]} f4 {[%emt 0:00:27]} 23. gxf4 $2 {[%emt 0:06:27]} (23. Nxd5 $15 Bxd5 24. Rxd5 fxg3 25. Rf5 Rxf5 26. Qxf5 gxf2+ 27. Qxf2 Bxh2+ 28. Kh1) 23... Rxf4 {[%emt 0:02:08]} 24. Qh5 {[%emt 0:04:13]} d4 {[%emt 0:10:54]} 25. Nd5 {[%emt 0:03:26]} Nxd5 {[%emt 0:01:03]} 26. Bxd5+ {[%emt 0:00:07]} Kh8 {[%emt 0:00:25]} 27. Rd3 {[%emt 0:06:25]} g6 {[%emt 0:03:36]} 28. Qg5 {[%emt 0:07:14]} Rf5 {[%emt 0:00:50]} 29. Qg2 $19 {[%emt 0:01:12]} Rxd5 {[%emt 0:00:16]} 30. e4 {[%emt 0:04:00]} Rh5 {[%emt 0:00:25]} 31. h3 {[%emt 0:00:29]} Qe7 {[%emt 0:00:24]} 32. Re1 {[%emt 0:00:47]} Rg5 {[%emt 0:00:38]} 33. Rg3 {[%emt 0:00:18]} Bxg3 {[%emt 0:00:15]} 34. fxg3 {[%emt 0:00:02]} Re5 {[%emt 0:00:24]} 0-1

[Event "Gibraltar Challengers A 2019"]
[Site "Caleta"]
[Date "2019.01.21"]
[Round "1"]
[White "Ungureanu, Sandu"]
[Black "Longa Yauca, Javier"]
[Result "0-1"]
[ECO "A00"]
[WhiteElo "2057"]
[BlackElo "2226"]
[Annotator "NA"]
[PlyCount "100"]
[EventDate "2019.01.21"]
[EventType "swiss"]
[EventCountry "GGB"]
[SourceTitle "playchess.com"]
[Source "ChessBase"]
[SourceQuality "1"]
[TimeControl "6600+10"]

{[%evp 15,99,-21,32767,32767,18,32767,32767,32767,-14,-7,30,32767,0,0,43,-48,-36,32767,-30,-43,32767,-54,-53,-93,-28,-62,-67,-71,-68,-94,-64,32767,32767,-95,32767,-21,-27,-72,32767,32767,-68,-81,32767,-92,-86,-117,-110,-220,-263,32767,-277,-397,32767,32767,32767,32767,32767,-647,32767,32767,-633,-440,32767,-283,-371,32767,-562,32767,-595,32767,-637,-650,32767,-670,32767,-741,-981,-828,-1325,32767,-997,32767,-2745,-1806,-5850,-4789]} 1. g3 {[%emt 0:00:00]} e5 {[%emt 0:00:01]} 2. d4 {[%emt 0:00:07]} e4 {[%emt 0:00:29]} 3. Bg2 {[%emt 0:00:09]} Nf6 {[%emt 0:00:13]} 4. Bg5 {[%emt 0:00:21]} d5 {[%emt 0:00:23]} 5. Bxf6 {[%emt 0:00:42]} Qxf6 {[%emt 0:00:18]} 6. e3 {[%emt 0:00:08]} c5 {[%emt 0:01:18]} 7. c3 {[%emt 0:00:40]} Nc6 {[%emt 0:00:27]} 8. Ne2 {[%emt 0:01:07]} Bg4 {[%emt 0:02:31]} 9. h3 {[%emt 0:02:24]} Bf3 {[%emt 0:01:20]} 10. Bxf3 {[%emt 0:01:46]} Qxf3 {[%emt 0:00:31]} 11. O-O {[%emt 0:00:14]} O-O-O {[%emt 0:02:10]} 12. Nf4 {[%emt 0:03:12]} Qxd1 {[%emt 0:01:47]} 13. Rxd1 {[%emt 0:00:25]} g5 {[%emt 0:01:32]} 14. Nh5 {[%emt 0:05:46]} f5 {[%emt 0:01:55]} 15. Nd2 {[%emt 0:00:49]} (15. dxc5 $11 Ne5 16. b4) 15... cxd4 {[%emt 0:02:06]} 16. cxd4 {[%emt 0:00:15]} Bd6 {[%emt 0:00:21]} 17. Rac1 {[%emt 0:01:51]} Rhf8 {[%emt 0:01:34]} 18. a3 {[%emt 0:00:58]} Kd7 {[%emt 0:01:27]} 19. b4 {[%emt 0:02:07]} Rf7 {[%emt 0:01:35]} (19... Ne7 $17) 20. Nb3 {[%emt 0:02:08]} b6 {[%emt 0:00:22]} 21. b5 {[%emt 0:06:30]} Ne7 {[%emt 0:00:23]} 22. a4 {[%emt 0:00:05]} f4 {[%emt 0:01:38]} 23. exf4 {[%emt 0:06:26]} gxf4 {[%emt 0:00:09]} 24. g4 {[%emt 0:00:19]} Rc8 {[%emt 0:03:13]} 25. Rxc8 {[%emt 0:03:44]} Nxc8 {[%emt 0:00:33]} 26. Rc1 {[%emt 0:01:44]} Ne7 {[%emt 0:00:26]} 27. a5 {[%emt 0:01:51]} Bc7 {[%emt 0:03:38]} 28. axb6 {[%emt 0:00:29]} axb6 {[%emt 0:00:15]} 29. Ra1 {[%emt 0:02:49]} Nc8 {[%emt 0:03:27]} 30. Ra8 {[%emt 0:03:11]} Nd6 {[%emt 0:00:23]} 31. Rh8 {[%emt 0:00:10]} (31. g5 $17) 31... Bd8 {[%emt 0:00:42]} 32. f3 {[%emt 0:05:18]} Nxb5 {[%emt 0:00:33]} 33. Kf2 {[%emt 0:00:33]} (33. Kg2 $142) 33... Nc3 {[%emt 0:00:42]} 34. Nc1 {[%emt 0:02:28]} b5 {[%emt 0:03:02]} 35. Nb3 {[%emt 0:01:03]} e3+ {[%emt 0:00:52]} 36. Kg2 {[%emt 0:00:25]} Be7 {[%emt 0:04:24]} 37. Nc1 {[%emt 0:02:33]} e2 {[%emt 0:02:07]} 38. Nd3 {[%emt 0:00:07]} Bh4 {[%emt 0:01:40]} 39. Ra8 {[%emt 0:02:41]} Kc6 {[%emt 0:12:19]} 40. Re8 {[%emt 0:04:40]} Kb6 {[%emt 0:05:29]} 41. Rb8+ {[%emt 0:05:53]} Ka7 {[%emt 0:00:31]} 42. Re8 {[%emt 0:00:19] [#]} b4 $1 {[%emt 0:00:56]} 43. Nhxf4 {[%emt 0:00:47]} Rxf4 {[%emt 0:00:22]} 44. Nxf4 {[%emt 0:00:12]} e1=Q {[%emt 0:00:09]} 45. Rxe1 {[%emt 0:00:09]} Bxe1 {[%emt 0:00:45]} 46. Nd3 {[%emt 0:00:07]} b3 {[%emt 0:00:25]} 47. f4 {[%emt 0:00:54]} Ne4 {[%emt 0:00:36]} 48. f5 {[%emt 0:00:49]} Bc3 {[%emt 0:12:37]} 49. h4 {[%emt 0:00:43]} b2 {[%emt 0:00:49]} 50. Nxb2 $19 {[%emt 0:00:09]} Bxb2 {[%emt 0:00:06]} 0-1

[Event "Gibraltar Challengers A 2019"]
[Site "Caleta"]
[Date "2019.01.21"]
[Round "1"]
[White "Cao Armillas, Jesus"]
[Black "Elishev, Ivan"]
[Result "0-1"]
[ECO "A41"]
[WhiteElo "2048"]
[BlackElo "2224"]
[Annotator "NA"]
[PlyCount "82"]
[EventDate "2019.01.21"]
[EventType "swiss"]
[EventCountry "GGB"]
[SourceTitle "playchess.com"]
[Source "ChessBase"]
[SourceQuality "1"]
[TimeControl "6600+10"]

{[%evp 9,77,39,34,32767,52,32767,32767,51,57,-6,32767,32767,22,0,20,-19,32767,32767,-55,32767,32767,-92,-91,32767,32767,-81,-81,-140,32767,32767,-112,32767,-154,-145,-143,-146,-150,32767,32767,-151,-171,-160,-162,32767,32767,32767,-138,32767,32767,32767,32767,32767,32767,32767,32767,32767,-318,32767,-311,32767,-247,-462,-376,-366,32767,32767,32767,-484,32767,-917]} 1. d4 {[%emt 0:00:00]} d6 {[%emt 0:07:24]} 2. Nf3 {[%emt 0:00:49]} g6 {[%emt 0:00:04]} 3. c4 {[%emt 0:00:19]} Bg7 {[%emt 0:00:02]} 4. g3 {[%emt 0:00:08]} Nc6 {[%emt 0:01:54]} 5. Bg2 {[%emt 0:00:30]} e5 {[%emt 0:00:27] LiveBook: 41 Games} 6. dxe5 {[%emt 0:02:58]} Nxe5 {[%emt 0:00:37] A41: 1 d4 d6: Tartakower System and Modern Defence} 7. Nxe5 {[%emt 0:00:19]} Bxe5 {[%emt 0:00:02]} 8. Qc2 {[%emt 0:12:39]} (8. Nc3 Bg7 9. O-O Ne7 10. c5 O-O 11. cxd6 cxd6 12. Bf4 Be5 {1-0 (83) Dzagnidze,N (2550)-Stefanova,A (2489) Khanty-Mansiysk 2014}) 8... Ne7 {[%emt 0:01:14]} 9. Nd2 $146 {[%emt 0:07:41]} ({Predecessor:} 9. Nc3 $14 Nc6 10. O-O Bg7 11. Bf4 Be6 12. Nd5 O-O 13. Rfd1 f5 14. Rac1 {1-0 (42) Mayo,A (2045)-Gulati,J (2065) Charlottetown 1997}) 9... Nc6 {[%emt 0:00:46]} 10. Nf3 {[%emt 0:00:48]} Bg7 {[%emt 0:01:05]} 11. O-O {[%emt 0:01:07]} (11. Bg5 $5 {[%cal Rg5d8]} Qd7 12. O-O $11) 11... O-O {[%emt 0:00:04]} 12. Be3 {[%emt 0:05:48]} Qf6 {[%emt 0:01:53]} 13. Rad1 {[%emt 0:13:43]} Qxb2 {[%emt 0:00:47]} 14. Qxb2 {[%emt 0:04:08]} Bxb2 {[%emt 0:00:03]} 15. Rd2 {[%emt 0:01:50]} Bc3 {[%emt 0:00:44]} 16. Rd3 {[%emt 0:00:21]} Bf6 {[%emt 0:03:32]} 17. Rc1 {[%emt 0:07:16]} Bf5 {[%emt 0:05:37]} 18. Rb3 {[%emt 0:07:21]} ({White should try} 18. Rd2) 18... Rab8 {[%emt 0:00:28]} 19. Nh4 {[%emt 0:00:50]} Bg4 {[%emt 0:06:57]} 20. Rc2 {[%emt 0:07:04]} Na5 {[%emt 0:07:57]} 21. Ra3 {[%emt 0:03:15] [#]} b6 $1 {[%emt 0:00:04]} 22. Bd2 {[%emt 0:03:50]} Bd4 {[%emt 0:08:57]} 23. Bb4 {[%emt 0:08:55]} Rfd8 {[%emt 0:13:06]} 24. h3 {[%emt 0:09:55]} Be6 {[%emt 0:00:12]} 25. Bxa5 {[%emt 0:02:54]} bxa5 {[%emt 0:00:01]} 26. e3 {[%emt 0:00:25]} Rb1+ {[%emt 0:01:02]} 27. Kh2 {[%emt 0:00:05]} Bb6 {[%emt 0:01:13]} 28. Nf3 {[%emt 0:00:21]} Bf5 {[%emt 0:02:53]} 29. Rcc3 {[%emt 0:00:38]} Rb2 {[%emt 0:00:19]} 30. Kg1 {[%emt 0:00:03]} Bc5 {[%emt 0:00:49]} 31. Rab3 {[%emt 0:00:32]} Rxa2 {[%emt 0:00:19]} 32. Nd4 {[%emt 0:00:33]} Ra1+ {[%emt 0:07:36]} 33. Kh2 {[%emt 0:00:09]} a4 {[%emt 0:02:43]} 34. Rb7 {[%emt 0:01:33]} Bb6 {[%emt 0:07:58]} 35. Nb5 $2 {[%emt 0:04:22]} (35. Nxf5 gxf5 36. Bd5) 35... Bc8 {[%emt 0:01:46]} 36. Rb8 {[%emt 0:00:16]} Rf8 {[%emt 0:00:22]} 37. Bd5 {[%emt 0:00:38]} Bd7 {[%emt 0:01:07]} 38. Rxf8+ {[%emt 0:00:31]} Kxf8 {[%emt 0:00:02]} 39. Na3 $19 {[%emt 0:00:23]} Bc5 {[%emt 0:00:30]} 40. Nc2 {[%emt 0:00:05]} Rc1 {[%emt 0:00:06]} 41. Be4 {[%emt 0:00:29]} Bf5 {[%emt 0:00:46]} 0-1

[Event "Gibraltar Challengers A 2019"]
[Site "Caleta"]
[Date "2019.01.21"]
[Round "1"]
[White "Kukic, Boris"]
[Black "Pinho, Paulo"]
[Result "0-1"]
[ECO "B43"]
[WhiteElo "2035"]
[BlackElo "2205"]
[Annotator "NA"]
[PlyCount "118"]
[EventDate "2019.01.21"]
[EventType "swiss"]
[EventCountry "GGB"]
[SourceTitle "playchess.com"]
[Source "ChessBase"]
[SourceQuality "1"]
[TimeControl "6600+10"]

1. e4 {[%emt 0:00:10]} c5 {[%emt 0:00:02]} 2. Nf3 {[%emt 0:01:01]} e6 {[%emt 0:00:00]} 3. d4 {[%emt 0:01:11]} cxd4 {[%emt 0:00:07]} 4. Nxd4 {[%emt 0:00:12]} a6 {[%emt 0:00:08]} 5. Nc3 {[%emt 0:00:23]} Qc7 {[%emt 0:00:17]} 6. Be3 {[%emt 0:01:02]} Nf6 {[%emt 0:01:53]} 7. a3 {[%emt 0:00:24]} b5 {[%emt 0:00:41] LiveBook: 25 Games} 8. f3 {[%emt 0:01:50] B43: Sicilian: Kan Variation: 5 Nc3} (8. Bd3 Bb7 9. Qf3 d6 10. Qg3 Nbd7 11. O-O h5 12. h3 h4 13. Qf3 Be7 14. Nb3 d5 15. Bf4 e5 {0-1 (31) Escobar Medina,A (2343)-Iturrizaga Bonelli,E (2663) Medellin 2017}) 8... Bb7 {[%emt 0:02:49]} 9. Qd2 {[%emt 0:00:37]} d5 {[%emt 0:06:23]} 10. exd5 {[%emt 0:04:00]} Nxd5 {[%emt 0:00:09]} 11. Nxd5 {[%emt 0:00:25]} Bxd5 {[%emt 0:00:07]} 12. Bd3 {[%emt 0:04:17]} Nd7 {[%emt 0:03:58]} 13. O-O {[%emt 0:01:08]} Bd6 {[%emt 0:01:04]} 14. h3 $146 {[%emt 0:00:23]} ({Predecessor:} 14. g3 O-O 15. c3 Ne5 {½-½ (58) Kagel,J (1175)-Zur Nieden,P (1278) Greifswald 2013}) 14... O-O {[%emt 0:01:01]} 15. Kh1 {[%emt 0:06:17]} Rfd8 {[%emt 0:06:53]} 16. Bg5 {[%emt 0:03:06]} (16. Bxb5 $11 axb5 17. Nxb5) 16... f6 {[%emt 0:07:46]} 17. Be3 {[%emt 0:01:59]} Ne5 {[%emt 0:01:55]} 18. Qe2 {[%emt 0:09:00]} Qb7 {[%emt 0:04:19]} 19. Qf2 {[%emt 0:02:36]} g6 {[%emt 0:16:57]} 20. Be4 {[%emt 0:09:05]} Re8 {[%emt 0:02:53]} 21. Rae1 {[%emt 0:04:30]} Nc4 {[%emt 0:02:53]} 22. Bc1 {[%emt 0:03:54]} Bc5 {[%emt 0:03:10]} 23. b3 {[%emt 0:00:26]} Nd6 {[%emt 0:03:37]} 24. Bxd5 {[%emt 0:03:06]} Qxd5 {[%emt 0:00:09]} 25. Be3 {[%emt 0:00:37]} e5 {[%emt 0:02:10]} 26. Ne2 {[%emt 0:00:42]} Bxa3 {[%emt 0:00:53]} 27. Rd1 {[%emt 0:01:02]} ({White should try} 27. Ra1 $1 $15 b4 28. c4) 27... Qc6 {[%emt 0:01:13]} 28. c3 {[%emt 0:01:37]} Nf5 {[%emt 0:00:33]} 29. b4 {[%emt 0:00:59]} a5 {[%emt 0:03:53]} 30. Bc5 $1 {[%emt 0:00:23]} axb4 {[%emt 0:00:47]} 31. cxb4 {[%emt 0:00:12]} Red8 {[%emt 0:19:03]} 32. Rxd8+ {[%emt 0:02:16]} Rxd8 {[%emt 0:00:10]} 33. Nc3 {[%emt 0:00:31]} Qe6 {[%emt 0:09:24]} 34. Ra1 {[%emt 0:02:32]} Qb3 {[%emt 0:00:42]} 35. Qa2 {[%emt 0:00:12]} Qxa2 {[%emt 0:00:12]} 36. Rxa2 {[%emt 0:00:14]} Bc1 {[%emt 0:00:07]} 37. g4 {[%emt 0:01:45]} Nh4 {[%emt 0:02:18]} 38. Be7 {[%emt 0:02:42]} Rd3 {[%emt 0:00:53]} 39. Bxf6 {[%emt 0:02:14]} Rxf3 {[%emt 0:00:33]} 40. Nd5 {[%emt 0:01:13]} Rxh3+ {[%emt 0:00:47]} 41. Rh2 {[%emt 0:00:44]} Rxh2+ {[%emt 0:00:57]} 42. Kxh2 {[%emt 0:00:07]} g5 {[%emt 0:00:56]} 43. Be7 {[%emt 0:01:17]} Kf7 {[%emt 0:00:20]} 44. Bc5 {[%emt 0:00:06]} Bf4+ {[%emt 0:00:32]} 45. Kg1 {[%emt 0:00:38]} e4 {[%emt 0:00:12]} 46. Kf2 {[%emt 0:00:18]} Nf3 {[%emt 0:00:22]} 47. Nc3 {[%emt 0:00:30]} Ne5 {[%emt 0:00:17]} 48. Nxe4 {[%emt 0:00:20]} Nxg4+ {[%emt 0:00:09]} 49. Kg2 {[%emt 0:00:20]} Ne3+ {[%emt 0:00:19]} 50. Kf3 {[%emt 0:00:18]} Nd5 {[%emt 0:00:05]} 51. Nf2 {[%emt 0:03:08]} Ke6 {[%emt 0:00:10]} 52. Kg4 {[%emt 0:00:33]} Nf6+ {[%emt 0:00:04]} 53. Kf3 {[%emt 0:00:16]} Kf5 {[%emt 0:00:05]} 54. Nd3 {[%emt 0:00:26]} g4+ {[%emt 0:00:07]} 55. Kg2 {[%emt 0:00:17]} h5 {[%emt 0:00:06]} 56. Bf2 {[%emt 0:00:24]} Bg5 {[%emt 0:00:14]} 57. Nc5 {[%emt 0:00:30]} Ne4 {[%emt 0:00:09]} 58. Be1 $19 {[%emt 0:00:32]} Nxc5 {[%emt 0:00:09]} 59. bxc5 {[%emt 0:00:04]} Ke6 {[%emt 0:00:13]} 0-1

[Event "Gibraltar Challengers A 2019"]
[Site "Caleta"]
[Date "2019.01.21"]
[Round "1"]
[White "Herzwurm, Robert"]
[Black "Lucas Vega, Ivan"]
[Result "1/2-1/2"]
[ECO "B23"]
[WhiteElo "2021"]
[BlackElo "2203"]
[Annotator "NA"]
[PlyCount "67"]
[EventDate "2019.01.21"]
[EventType "swiss"]
[EventCountry "GGB"]
[SourceTitle "playchess.com"]
[Source "ChessBase"]
[SourceQuality "1"]
[TimeControl "6600+10"]

1. e4 {[%emt 0:00:00]} c5 {[%emt 0:00:00]} 2. Nc3 {[%emt 0:00:04]} d6 {[%emt 0:00:02]} 3. f4 {[%emt 0:00:19]} Nc6 {[%emt 0:00:16]} 4. Nf3 {[%emt 0:00:58]} g6 {[%emt 0:00:01]} 5. Bb5 {[%emt 0:03:06]} Bg7 {[%emt 0:00:17]} 6. O-O {[%emt 0:00:43]} a6 {[%emt 0:02:12] LiveBook: 4 Games B23: Closed Sicilian: Lines without g3} (6... Bd7 7. Bc4 e6 8. f5 Ne5 9. fxe6 fxe6 10. d3 Qe7 11. Bg5 Nf6 12. Nxe5 dxe5 13. Qf3 O-O 14. Qh3 Qd6 {1-0 (61) Adhiban,B (2673)-Nguyen,N (2666) Hamedan 2018}) 7. Bxc6+ {[%emt 0:00:48]} bxc6 {[%emt 0:00:04]} 8. d3 {[%emt 0:01:43]} Nh6 {[%emt 0:05:09]} 9. f5 {[%emt 0:07:02]} gxf5 {[%emt 0:15:50]} 10. Ng5 $146 {[%emt 0:43:33]} ({Predecessor:} 10. Qe1 fxe4 11. dxe4 Ng4 12. Qh4 Be6 {0-1 (44) Angst,R (2005)-Jussupow,N (2127) Zuerich 2010}) 10... e6 {[%emt 0:16:00]} (10... fxe4 $15 11. Ngxe4 Ng4) 11. Qh5 {[%emt 0:18:40]} O-O {[%emt 0:21:34]} 12. Rf3 {[%emt 0:14:58]} ({White should play} 12. Nxe6 $14 fxe6 13. Bxh6) 12... Qf6 {[%emt 0:05:57]} 13. exf5 {[%emt 0:06:52]} exf5 {[%emt 0:00:38]} 14. Nce4 {[%emt 0:05:07]} Qg6 {[%emt 0:12:48]} 15. Qxg6 {[%emt 0:00:54]} fxg6 {[%emt 0:00:36]} 16. Nxd6 {[%emt 0:00:15]} Ng4 {[%emt 0:00:08]} 17. Nxc8 {[%emt 0:02:09]} (17. h3 $11 {remains equal.} Ne5 18. Rf1) 17... Rfxc8 {[%emt 0:04:48]} 18. h3 {[%emt 0:00:35]} Ne5 {[%emt 0:05:08]} 19. Rf1 {[%emt 0:00:24]} Re8 {[%emt 0:00:50]} 20. Bd2 {[%emt 0:00:53]} h6 {[%emt 0:00:23]} 21. Nf3 {[%emt 0:01:21]} Nxf3+ {[%emt 0:00:16]} 22. Rxf3 {[%emt 0:01:56]} Re2 {[%emt 0:00:17]} 23. Rd1 {[%emt 0:00:21]} Bxb2 {[%emt 0:02:12]} 24. Kf1 {[%emt 0:00:14]} Rae8 {[%emt 0:00:32]} 25. c3 {[%emt 0:00:27]} Ba3 {[%emt 0:00:54]} 26. Rf2 {[%emt 0:00:17]} Rxf2+ {[%emt 0:05:14]} 27. Kxf2 {[%emt 0:00:02]} Rb8 {[%emt 0:00:01]} 28. Bxh6 {[%emt 0:00:07]} Rb2+ $11 {[%emt 0:00:22]} 29. Rd2 {[%emt 0:00:07]} Rb1 {[%emt 0:00:02]} 30. Re2 {[%emt 0:00:14]} Kf7 {[%emt 0:02:00]} 31. Be3 {[%emt 0:00:07]} a5 {[%emt 0:01:23]} 32. Re1 {[%emt 0:00:11]} Rb2+ {[%emt 0:00:44]} 33. Re2 {[%emt 0:00:01]} Rb7 {[%emt 0:00:03]} 34. Bg5 {[%emt 0:00:30]} 1/2-1/2

[Event "Gibraltar Challengers A 2019"]
[Site "Caleta"]
[Date "2019.01.21"]
[Round "1"]
[White "Boardman, Jeffrey"]
[Black "Torres, Federico"]
[Result "0-1"]
[ECO "C41"]
[WhiteElo "2005"]
[BlackElo "2196"]
[Annotator "NA"]
[PlyCount "61"]
[EventDate "2019.01.21"]
[EventType "swiss"]
[EventCountry "GGB"]
[SourceTitle "playchess.com"]
[Source "ChessBase"]
[SourceQuality "1"]
[TimeControl "6600+10"]

1. e4 {[%emt 0:00:00]} e5 {[%emt 0:00:00]} 2. Nf3 {[%emt 0:00:03]} d6 {[%emt 0:00:07]} 3. Bc4 {[%emt 0:00:54]} c6 {[%emt 0:04:25]} 4. d4 {[%emt 0:01:30]} Nd7 {[%emt 0:00:05]} 5. c3 {[%emt 0:03:55]} Ngf6 {[%emt 0:00:25]} 6. O-O {[%emt 0:19:13]} Be7 {[%emt 0:13:46]} 7. dxe5 {[%emt 0:20:53] C41: Philidor Defence} Nxe4 $146 {[%emt 0:01:58]} ({Predecessor:} 7... dxe5 8. Qb3 O-O 9. Rd1 b5 10. Be2 Qc7 11. Nbd2 Nc5 12. Qc2 Bg4 13. b4 Ne6 14. Nb3 Rfd8 {1-0 (31) Llaneza Vega,M (2361)-Aparicio Garcia,E (2163) Madrid 2006}) 8. exd6 {[%emt 0:05:05]} Nxd6 {[%emt 0:00:28]} 9. Bb3 {[%emt 0:03:47]} Nc5 {[%emt 0:09:12]} 10. Be3 {[%emt 0:08:26]} Nxb3 {[%emt 0:06:37]} 11. axb3 {[%emt 0:00:59]} a6 {[%emt 0:22:47]} 12. Re1 {[%emt 0:03:08]} O-O {[%emt 0:06:20]} 13. Bc5 {[%emt 0:01:52]} Be6 {[%emt 0:21:32]} 14. Nd4 {[%emt 0:02:17]} Bd7 {[%emt 0:07:43]} 15. Nd2 {[%emt 0:12:58]} Re8 {[%emt 0:01:15]} 16. Rxe7 {[%emt 0:07:46]} Qxe7 {[%emt 0:00:59]} 17. Nc4 {[%emt 0:00:17]} Qg5 {[%emt 0:05:35]} 18. Bxd6 {[%emt 0:00:13]} Bg4 {[%emt 0:00:35]} 19. Qc1 {[%emt 0:01:13]} Qg6 {[%emt 0:00:52]} 20. Bg3 {[%emt 0:00:52]} c5 $18 {[%emt 0:00:28]} 21. Nc2 {[%emt 0:00:26]} f6 {[%emt 0:03:31]} 22. N2e3 {[%emt 0:00:20]} Be6 {[%emt 0:00:30]} 23. Nd6 {[%emt 0:05:34]} Re7 {[%emt 0:00:10]} 24. Qb1 {[%emt 0:00:37]} Qh5 {[%emt 0:02:06]} 25. c4 {[%emt 0:00:45]} Rd7 {[%emt 0:00:17]} 26. Qe4 {[%emt 0:00:41]} Bf7 {[%emt 0:00:47]} 27. Nxf7 {[%emt 0:01:12]} Kxf7 {[%emt 0:00:02]} 28. Nd5 {[%emt 0:01:27]} Re8 {[%emt 0:00:03]} 29. Qf3 {[%emt 0:00:12]} Qxf3 {[%emt 0:01:16]} 30. gxf3 {[%emt 0:00:06]} Re2 {[%emt 0:00:02]} 31. Rb1 {[%emt 0:00:49]} 0-1

[Event "Gibraltar Challengers A 2019"]
[Site "Caleta"]
[Date "2019.01.21"]
[Round "1"]
[White "Tovarek, Antonin"]
[Black "Pavlov, Egor"]
[Result "1/2-1/2"]
[ECO "B27"]
[WhiteElo "1995"]
[BlackElo "2187"]
[Annotator "NA"]
[PlyCount "68"]
[EventDate "2019.01.21"]
[EventType "swiss"]
[EventCountry "GGB"]
[SourceTitle "playchess.com"]
[Source "ChessBase"]
[SourceQuality "1"]
[TimeControl "6600+10"]

1. e4 {[%emt 0:00:00]} c6 {[%emt 0:00:00]} 2. c4 {[%emt 0:00:00]} d5 {[%emt 0:00:02]} 3. exd5 {[%emt 0:00:00]} cxd5 {[%emt 0:00:06]} 4. cxd5 {[%emt 0:00:03]} Nf6 {[%emt 0:01:00]} 5. Bb5+ {[%emt 0:00:03]} Nbd7 {[%emt 0:03:03]} 6. Nc3 {[%emt 0:00:25]} g6 {[%emt 0:01:04]} 7. Nf3 {[%emt 0:00:37]} Bg7 {[%emt 0:00:25]} 8. d6 {[%emt 0:04:06]} exd6 {[%emt 0:09:30] LiveBook: 8 Games} 9. Qe2+ {[%emt 0:00:20]} Qe7 {[%emt 0:00:51]} 10. Qxe7+ {[%emt 0:00:05]} Kxe7 {[%emt 0:00:04]} 11. d4 {[%emt 0:00:37]} Nb6 {[%emt 0:05:08]} 12. O-O {[%emt 0:01:49]} a6 {[%emt 0:04:03] B27: Sicilian: 2 Nf3, unusual Black 2nd moves} 13. Re1+ {[%emt 0:01:37]} Be6 {[%emt 0:00:40]} 14. Bd3 {[%emt 0:01:33]} h6 {[%emt 0:05:47]} 15. Bd2 {[%emt 0:05:54]} Rac8 {[%emt 0:02:07]} 16. Ne4 $146 {[%emt 0:16:22]} ({Predecessor:} 16. Rac1 Kd7 17. Rcd1 Rhe8 18. h3 Nbd5 19. Ne4 Nxe4 20. Bxe4 f5 21. Bb1 Ne7 22. Bc3 Nd5 23. Bd2 Ne7 {½-½ (23) Velikhanli,F (2322)-Amer,M (2220) Abu Dhabi 2004}) 16... Nfd5 {[%emt 0:03:31]} 17. a4 {[%emt 0:07:25]} Nc4 {[%emt 0:06:07]} 18. Nc3 {[%emt 0:05:01]} Kd7 {[%emt 0:07:53]} 19. Be4 {[%emt 0:07:05]} Nxc3 {[%emt 0:26:04]} 20. Bxc3 {[%emt 0:05:19]} d5 {[%emt 0:02:05]} 21. Bd3 {[%emt 0:01:15]} Rhe8 {[%emt 0:04:14]} 22. h3 {[%emt 0:01:59]} Kc7 {[%emt 0:06:23]} 23. b3 {[%emt 0:06:24]} Nd6 {[%emt 0:02:02]} 24. Ne5 {[%emt 0:02:26]} Kb8 {[%emt 0:01:39]} 25. Bb4 {[%emt 0:02:57]} Nf5 {[%emt 0:04:20]} 26. Bc5 {[%emt 0:05:39]} Ne7 {[%emt 0:11:27]} 27. b4 {[%emt 0:08:58]} Nc6 {[%emt 0:02:48]} 28. b5 {[%emt 0:05:29]} Nxe5 {[%emt 0:01:01]} 29. Bd6+ {[%emt 0:00:05]} Ka7 {[%emt 0:00:06]} 30. dxe5 {[%emt 0:00:32]} Rc3 {[%emt 0:00:59]} 31. Red1 $11 {[%emt 0:05:46]} Bf8 {[%emt 0:00:02]} 32. Bxf8 {[%emt 0:02:36]} Rxf8 {[%emt 0:00:00]} 33. Rab1 {[%emt 0:00:01]} axb5 {[%emt 0:00:35]} 34. axb5 {[%emt 0:01:45]} Kb6 {[%emt 0:00:01]} 1/2-1/2